{"text_format":"3","workbook":"xlsx","n_sheets":2,"sheets":["START","ÅRLIG TIMESEDDEL"],"not_rendered":{"defined_names":2},"read":"whole","date_system":"1900"}

{"sheet":"START","index":0,"n_rows":8,"n_cols":2,"rows_kept":8}
[null,"OM DENNE SKABELON"]
[null,"Registrer dine timer dagligt, ugentligt, månedligt og årligt i denne medarbejdertimeseddel."]
[null,"Udfyld basisoplysninger som navn på medarbejder, lederens navn, mailadresse og telefonnummer. "]
[null,"Indsæt dine time for hver månedstabel. Registrer normal arbejdstid og overtid i særskilte kolonner for hver ugedag. "]
[null,"Samlet arbejdstid, normal arbejdstid og overtid beregnes automatisk. "]
[null,"Bemærkninger:"]
[null,"Der er yderligere vejledning at finde i kolonne A i regnearket ÅRLIG TIMESEDDEL. Denne tekst er skjult med vilje. Du kan fjerne tekst ved at markere kolonne A og derefter vælge Slet. For ikke længere at skjule tekst skal du markere kolonne A og derefter ændre skriftfarven. "]
[null,"Hvis du vil vide mere om tabeller, skal du trykke på Skift og derefter F10, mens du er i en tabel, vælge indstillingen TABEL og derefter vælge ALTERNATIV TEKST."]

{"sheet":"ÅRLIG TIMESEDDEL","index":1,"n_rows":132,"n_cols":15,"rows_kept":132,"merged":[[0,1,0,2],[0,4,0,14],[10,6,10,7],[21,6,21,7],[32,6,32,7],[33,4,33,14],[43,6,43,7],[54,6,54,7],[65,6,65,7],[66,4,66,14],[76,6,76,7],[87,6,87,7],[98,6,98,7],[99,4,99,14],[109,6,109,7],[120,6,120,7],[131,6,131,7]]}
["Opret en daglig, ugentlig, månedlig eller årlig medarbejdertimeseddel i regnearket. \nI cellerne i denne kolonne vises en udførlig vejledning i, hvordan man bruger denne projektmappe. Pil ned for at starte.\nTitlen på regnearket er i cellen til højre, og overskriften for kvartalet januar, februar, marts er i celle E1.","MEDARBEJDER- \nTIMESEDDEL",null,null,"Januar, februar, marts      medarbejdertimeseddel: Dagligt, ugentligt, månedligt, årligt"]
["Angiv navn på medarbejder i celle C2 og almindelig arbejdstid og overtid i tabellen Januar, der begynder i celle E2.","Navn på medarbejder:",null,null,"Januar","Uge 1","Overtid","Uge 2","Overtid  ","Uge 3","Overtid   ","Uge 4","Overtid    ","Uge 5","Overtid     "]
["Angiv navnet på leder i celle C3.","Leder:",null,null,"Mandag",{"v":8,"d":"8.0"}]
["Angiv mailadresse i celle C4.","Mailadresse:",null,null,"Tirsdag",{"v":8,"d":"8.0"},{"v":2,"d":"2.0"}]
["Angiv telefonnummer i celle C5. Den næste vejledning er i celle A9.","Telefonnummer:",null,null,"Onsdag"]
[{"$nulls":4},"torsdag"]
[{"$nulls":4},"Fredag"]
[{"$nulls":4},"Lørdag"]
["Samlede årlige antal normale arbejdstimer beregnes automatisk i celle C9.","Normal arbejdstid:",{"$f":"NormalArbejdstid","v":31},null,"Søndag"]
["Samlede årlige antal overtidstimer beregnes automatisk i celle C10.","Overtid:",{"$f":"Overtidstimer","v":4},null,"Samlet antal ugentlige timer",{"$f":"SUM(F3:F9)","v":{"v":16,"d":"16.0"}},{"v":2,"d":"2.0"},{"v":0,"d":"0.0"},{"v":0,"d":"0.0"},{"v":0,"d":"0.0"},{"v":0,"d":"0.0"},{"v":0,"d":"0.0"},{"v":0,"d":"0.0"},{"v":0,"d":"0.0"},{"v":0,"d":"0.0"}]
["Samlede årlige antal arbejdstimer i alt beregnes automatisk i celle C11. Det samlede antal normale arbejdstimer for januar i celle F11 og det samlede antal overtidstimer for januar i celle I11 beregnes automatisk. Den næste vejledning er i celle A13.","I alt",{"$f":"NormalArbejdstid+Overtidstimer","v":35},null,{"$f":"TEXT(DATEVALUE(Januar[[#Headers],[Januar]]&\"  \"&YEAR(TODAY())),\"mmm.\")&\" samlet: Normal arbejdstid\"","v":"jan. samlet: Normal arbejdstid"},{"$f":"SUM(Januar[Uge 1],Januar[Uge 2],Januar[Uge 3],Januar[Uge 4],Januar[Uge 5])","v":{"v":16,"d":"16.0"}},{"$f":"TEXT(DATEVALUE(Januar[[#Headers],[Januar]]&\"  \"&YEAR(TODAY())),\"mmm.\")&\" samlet: Overtid\"","v":"jan. samlet: Overtid"},null,{"$f":"SUM(Januar[Overtid],Januar[[Overtid  ]],Januar[[Overtid   ]],Januar[[Overtid    ]],Januar[[Overtid     ]])","v":{"v":2,"d":"2.0"}}]
[]
["Angiv normale arbejdstimer og overtidstimer i tabellen februar i celle E13. Den næste vejledning er i celle A22.",{"$nulls":3},"Februar","Uge 1","Overtid","Uge 2","Overtid  ","Uge 3","Overtid   ","Uge 4","Overtid    ","Uge 5","Overtid     "]
[{"$nulls":4},"Mandag",{"v":8,"d":"8.0"}]
[{"$nulls":4},"Tirsdag",{"v":7,"d":"7.0"},{"v":2,"d":"2.0"}]
[{"$nulls":4},"Onsdag"]
[{"$nulls":4},"torsdag"]
[{"$nulls":4},"Fredag"]
[{"$nulls":4},"Lørdag"]
[{"$nulls":4},"Søndag"]
[{"$nulls":4},"Samlet antal ugentlige timer",{"$f":"SUM(F14:F20)","v":{"v":15,"d":"15.0"}},{"v":2,"d":"2.0"},{"v":0,"d":"0.0"},{"v":0,"d":"0.0"},{"v":0,"d":"0.0"},{"v":0,"d":"0.0"},{"v":0,"d":"0.0"},{"v":0,"d":"0.0"},{"v":0,"d":"0.0"},{"v":0,"d":"0.0"}]
["Det samlede antal normale arbejdstimer for februar i celle F22 og det samlede antal overtidstimer for februar i celle I22 beregnes automatisk. Den næste vejledning er i celle A24.",{"$nulls":3},{"$f":"TEXT(DATEVALUE(Februar[[#Headers],[Februar]]&\"  \"&YEAR(TODAY())),\"mmm.\")&\" samlet: Normal arbejdstid\"","v":"feb. samlet: Normal arbejdstid"},{"$f":"SUM(Februar[Uge 1],Februar[Uge 2],Februar[Uge 3],Februar[Uge 4],Februar[Uge 5])","v":{"v":15,"d":"15.0"}},{"$f":"TEXT(DATEVALUE(Februar[[#Headers],[Februar]]&\" \"&YEAR(TODAY())),\"mmm.\")&\" samlet: Overtid\"","v":"feb. samlet: Overtid"},null,{"$f":"SUM(Februar[Overtid],Februar[[Overtid  ]],Februar[[Overtid   ]],Februar[[Overtid    ]],Februar[[Overtid     ]])","v":{"v":2,"d":"2.0"}}]
[]
["Angiv normale arbejdstimer og overtidstimer i tabellen marts i celle E24. Den næste vejledning er i celle A33.",{"$nulls":3},"Marts","Uge 1","Overtid","Uge 2","Overtid ","Uge 3","Overtid  ","Uge 4","Overtid    ","Uge 5","Overtid     "]
[{"$nulls":4},"Mandag"]
[{"$nulls":4},"Tirsdag"]
[{"$nulls":4},"Onsdag"]
[{"$nulls":4},"torsdag"]
[{"$nulls":4},"Fredag"]
[{"$nulls":4},"Lørdag"]
[{"$nulls":4},"Søndag"]
[{"$nulls":4},"Samlet antal ugentlige timer",{"$f":"SUM(F25:F31)","v":{"v":0,"d":"0.0"}},{"v":0,"d":"0.0"},{"v":0,"d":"0.0"},{"v":0,"d":"0.0"},{"v":0,"d":"0.0"},{"v":0,"d":"0.0"},{"v":0,"d":"0.0"},{"v":0,"d":"0.0"},{"v":0,"d":"0.0"},{"v":0,"d":"0.0"}]
["Det samlede antal normale arbejdstimer for marts i celle F33 og det samlede antal overtidstimer for marts i celle I33 beregnes automatisk.",{"$nulls":3},{"$f":"TEXT(DATEVALUE(Marts[[#Headers],[Marts]]&\" \"&YEAR(TODAY())),\"mmm.\")&\" samlet: Normal arbejdstid\"","v":"mar. samlet: Normal arbejdstid"},{"$f":"SUM(Marts[Uge 1],Marts[Uge 2],Marts[Uge 3],Marts[Uge 4],Marts[Uge 5])","v":{"v":0,"d":"0.0"}},{"$f":"TEXT(DATEVALUE(Marts[[#Headers],[Marts]]&\" \"&YEAR(TODAY())),\"mmm.\")&\" samlet: Overtid\"","v":"mar. samlet: Overtid"},null,{"$f":"SUM(Marts[Overtid],Marts[[Overtid ]],Marts[[Overtid  ]],Marts[[Overtid    ]],Marts[[Overtid     ]])","v":{"v":0,"d":"0.0"}}]
["Overskriften for andet kvartal, april, maj, juni, er i celle E34. ",{"$nulls":3},"April, maj, juni      medarbejdertimeseddel: Dagligt, ugentligt, månedligt, årligt"]
["Angiv normale arbejdstimer og overtidstimer for april i tabellen, der begynder i celle E35. Den næste vejledning er i celle A44.",{"$nulls":3},"April","Uge 1","Overtid","Uge 2","Overtid  ","Uge 3","Overtid   ","Uge 4","Overtid    ","Uge 5","Overtid     "]
[{"$nulls":4},"Mandag"]
[{"$nulls":4},"Tirsdag"]
[{"$nulls":4},"Onsdag"]
[{"$nulls":4},"torsdag"]
[{"$nulls":4},"Fredag"]
[{"$nulls":4},"Lørdag"]
[{"$nulls":4},"Søndag"]
[{"$nulls":4},"Samlet antal ugentlige timer",{"$f":"SUM(F36:F42)","v":{"v":0,"d":"0.0"}},{"v":0,"d":"0.0"},{"v":0,"d":"0.0"},{"v":0,"d":"0.0"},{"v":0,"d":"0.0"},{"v":0,"d":"0.0"},{"v":0,"d":"0.0"},{"v":0,"d":"0.0"},{"v":0,"d":"0.0"},{"v":0,"d":"0.0"}]
["Det samlede antal normale arbejdstimer for april i celle F44 og det samlede antal overtidstimer for april i celle I44 beregnes automatisk. Den næste vejledning er i celle A46.",{"$nulls":3},{"$f":"TEXT(DATEVALUE(April[[#Headers],[April]]&\" \"&YEAR(TODAY())),\"mmm.\")&\" samlet: Normal arbejdstid\"","v":"apr. samlet: Normal arbejdstid"},{"$f":"SUM(April[Uge 1],April[Uge 2],April[Uge 3],April[Uge 4],April[Uge 5])","v":{"v":0,"d":"0.0"}},{"$f":"TEXT(DATEVALUE(April[[#Headers],[April]]&\" \"&YEAR(TODAY())),\"mmm.\")&\" samlet: Overtid\"","v":"apr. samlet: Overtid"},null,{"$f":"SUM(April[Overtid],April[[Overtid  ]],April[[Overtid   ]],April[[Overtid    ]],April[[Overtid     ]])","v":{"v":0,"d":"0.0"}}]
[]
["Angiv normale arbejdstimer og overtidstimer for maj i tabellen, der begynder i celle E46. Den næste vejledning er i celle A55.",{"$nulls":3},"Maj","Uge 1","Overtid","Uge 2","Overtid  ","Uge 3","Overtid   ","Uge 4","Overtid    ","Uge 5","Overtid     "]
[{"$nulls":4},"Mandag"]
[{"$nulls":4},"Tirsdag"]
[{"$nulls":4},"Onsdag"]
[{"$nulls":4},"torsdag"]
[{"$nulls":4},"Fredag"]
[{"$nulls":4},"Lørdag"]
[{"$nulls":4},"Søndag"]
[{"$nulls":4},"Samlet antal ugentlige timer",{"$f":"SUM(F47:F53)","v":{"v":0,"d":"0.0"}},{"v":0,"d":"0.0"},{"v":0,"d":"0.0"},{"v":0,"d":"0.0"},{"v":0,"d":"0.0"},{"v":0,"d":"0.0"},{"v":0,"d":"0.0"},{"v":0,"d":"0.0"},{"v":0,"d":"0.0"},{"v":0,"d":"0.0"}]
["Det samlede antal normale arbejdstimer for maj i celle F55 og det samlede antal overtidstimer for maj i celle I55 beregnes automatisk. Den næste vejledning er i celle A57.",{"$nulls":3},{"$f":"TEXT(DATEVALUE(Maj[[#Headers],[Maj]]&\" \"&YEAR(TODAY())),\"mmm.\")&\" samlet: Normal arbejdstid\"","v":"maj. samlet: Normal arbejdstid"},{"$f":"SUM(Maj[Uge 1],Maj[Uge 2],Maj[Uge 3],Maj[Uge 4],Maj[Uge 5])","v":{"v":0,"d":"0.0"}},{"$f":"TEXT(DATEVALUE(Maj[[#Headers],[Maj]]&\" \"&YEAR(TODAY())),\"mmm.\")&\" samlet: Overtid\"","v":"maj. samlet: Overtid"},null,{"$f":"SUM(Maj[Overtid],Maj[[Overtid  ]],Maj[[Overtid   ]],Maj[[Overtid    ]],Maj[[Overtid     ]])","v":{"v":0,"d":"0.0"}}]
[]
["Angiv normale arbejdstimer og overtidstimer for juni i tabellen, der begynder i celle E57. Den næste vejledning er i celle A66.",{"$nulls":3},"Juni","Uge 1","Overtid","Uge 2","Overtid  ","Uge 3","Overtid   ","Uge 4","Overtid    ","Uge 5","Overtid     "]
[{"$nulls":4},"Mandag"]
[{"$nulls":4},"Tirsdag"]
[{"$nulls":4},"Onsdag"]
[{"$nulls":4},"torsdag"]
[{"$nulls":4},"Fredag"]
[{"$nulls":4},"Lørdag"]
[{"$nulls":4},"Søndag"]
[{"$nulls":4},"Samlet antal ugentlige timer",{"$f":"SUM(F58:F64)","v":{"v":0,"d":"0.0"}},{"v":0,"d":"0.0"},{"v":0,"d":"0.0"},{"v":0,"d":"0.0"},{"v":0,"d":"0.0"},{"v":0,"d":"0.0"},{"v":0,"d":"0.0"},{"v":0,"d":"0.0"},{"v":0,"d":"0.0"},{"v":0,"d":"0.0"}]
["Det samlede antal normale arbejdstimer for juni i celle F66 og det samlede antal overtidstimer for juni i celle I66 beregnes automatisk.",{"$nulls":3},{"$f":"TEXT(DATEVALUE(Juni[[#Headers],[Juni]]&\" \"&YEAR(TODAY())),\"mmm.\")&\" samlet: Normal arbejdstid\"","v":"jun. samlet: Normal arbejdstid"},{"$f":"SUM(Juni[Uge 1],Juni[Uge 2],Juni[Uge 3],Juni[Uge 4],Juni[Uge 5])","v":{"v":0,"d":"0.0"}},{"$f":"TEXT(DATEVALUE(Juni[[#Headers],[Juni]]&\" \"&YEAR(TODAY())),\"mmm.\")&\" samlet: Overtid\"","v":"jun. samlet: Overtid"},null,{"$f":"SUM(Juni[Overtid],Juni[[Overtid  ]],Juni[[Overtid   ]],Juni[[Overtid    ]],Juni[[Overtid     ]])","v":{"v":0,"d":"0.0"}}]
["Overskriften for tredje kvartal, juli, august, september, er i celle E67. ",{"$nulls":3},"Juli, august, september     medarbejdertimeseddel: Dagligt, ugentligt, månedligt, årligt"]
["Angiv normale arbejdstimer og overtidstimer for juli i tabellen, der begynder i celle E68. Den næste vejledning er i celle A77.",{"$nulls":3},"Juli","Uge 1","Overtid","Uge 2","Overtid ","Uge 3","Overtid  ","Uge 4","Overtid   ","Uge 5","Overtid     "]
[{"$nulls":4},"Mandag"]
[{"$nulls":4},"Tirsdag"]
[{"$nulls":4},"Onsdag"]
[{"$nulls":4},"torsdag"]
[{"$nulls":4},"Fredag"]
[{"$nulls":4},"Lørdag"]
[{"$nulls":4},"Søndag"]
[{"$nulls":4},"Samlet antal ugentlige timer",{"$f":"SUM(F69:F75)","v":{"v":0,"d":"0.0"}},{"v":0,"d":"0.0"},{"v":0,"d":"0.0"},{"v":0,"d":"0.0"},{"v":0,"d":"0.0"},{"v":0,"d":"0.0"},{"v":0,"d":"0.0"},{"v":0,"d":"0.0"},{"v":0,"d":"0.0"},{"v":0,"d":"0.0"}]
["Det samlede antal normale arbejdstimer for juli i celle F77 og det samlede antal overtidstimer for juli i celle I77 beregnes automatisk. Den næste vejledning er i celle A79.",{"$nulls":3},{"$f":"TEXT(DATEVALUE(Juli[[#Headers],[Juli]]&\" \"&YEAR(TODAY())),\"mmm.\")&\" samlet: Normal arbejdstid\"","v":"jul. samlet: Normal arbejdstid"},{"$f":"SUM(Juli[Uge 1],Juli[Uge 2],Juli[Uge 3],Juli[Uge 4],Juli[Uge 5])","v":{"v":0,"d":"0.0"}},{"$f":"TEXT(DATEVALUE(Juli[[#Headers],[Juli]]&\" \"&YEAR(TODAY())),\"mmm.\")&\" samlet: Overtid\"","v":"jul. samlet: Overtid"},null,{"$f":"SUM(Juli[Overtid],Juli[[Overtid ]],Juli[[Overtid  ]],Juli[[Overtid   ]],Juli[[Overtid     ]])","v":{"v":0,"d":"0.0"}}]
[]
["Angiv normale arbejdstimer og overtidstimer for august i tabellen, der begynder i celle E79. Den næste vejledning er i celle A88.",{"$nulls":3},"August","Uge 1","Overtid","Uge 2","Overtid ","Uge 3","Overtid   ","Uge 4","Overtid  ","Uge 5","Overtid    "]
[{"$nulls":4},"Mandag"]
[{"$nulls":4},"Tirsdag"]
[{"$nulls":4},"Onsdag"]
[{"$nulls":4},"torsdag"]
[{"$nulls":4},"Fredag"]
[{"$nulls":4},"Lørdag"]
[{"$nulls":4},"Søndag"]
[{"$nulls":4},"Samlet antal ugentlige timer",{"$f":"SUBTOTAL(109,August[Uge 1])","v":{"v":0,"d":"0.0"}},{"$f":"SUBTOTAL(109,August[Overtid])","v":{"v":0,"d":"0.0"}},{"$f":"SUBTOTAL(109,August[Uge 2])","v":{"v":0,"d":"0.0"}},{"$f":"SUBTOTAL(109,August[[Overtid ]])","v":{"v":0,"d":"0.0"}},{"$f":"SUBTOTAL(109,August[Uge 3])","v":{"v":0,"d":"0.0"}},{"$f":"SUBTOTAL(109,August[[Overtid   ]])","v":{"v":0,"d":"0.0"}},{"$f":"SUBTOTAL(109,August[Uge 4])","v":{"v":0,"d":"0.0"}},{"$f":"SUBTOTAL(109,August[[Overtid  ]])","v":{"v":0,"d":"0.0"}},{"$f":"SUBTOTAL(109,August[Uge 5])","v":{"v":0,"d":"0.0"}},{"$f":"SUBTOTAL(109,August[[Overtid    ]])","v":{"v":0,"d":"0.0"}}]
["Det samlede antal normale arbejdstimer for august i celle F88 og det samlede antal overtidstimer for august i celle I88 beregnes automatisk. Den næste vejledning er i celle A90.",{"$nulls":3},{"$f":"TEXT(DATEVALUE(August[[#Headers],[August]]&\" \"&YEAR(TODAY())),\"mmm.\")&\" samlet: Normal arbejdstid\"","v":"aug. samlet: Normal arbejdstid"},{"$f":"SUM(August[Uge 1],August[Uge 2],August[Uge 3],August[Uge 4],August[Uge 5])","v":{"v":0,"d":"0.0"}},{"$f":"TEXT(DATEVALUE(August[[#Headers],[August]]&\" \"&YEAR(TODAY())),\"mmm.\")&\" samlet: Overtid\"","v":"aug. samlet: Overtid"},null,{"$f":"SUM(August[Overtid],August[[Overtid ]],August[[Overtid   ]],August[[Overtid  ]],August[[Overtid    ]])","v":{"v":0,"d":"0.0"}}]
[]
["Angiv normale arbejdstimer og overtidstimer for september i tabellen, der begynder i celle E90. Den næste vejledning er i celle A99.",{"$nulls":3},"September","Uge 1","Overtid","Uge 2","Overtid ","Uge 3","Overtid  ","Uge 4","Overtid   ","Uge 5","Overtid    "]
[{"$nulls":4},"Mandag"]
[{"$nulls":4},"Tirsdag"]
[{"$nulls":4},"Onsdag"]
[{"$nulls":4},"torsdag"]
[{"$nulls":4},"Fredag"]
[{"$nulls":4},"Lørdag"]
[{"$nulls":4},"Søndag"]
[{"$nulls":4},"Samlet antal ugentlige timer",{"$f":"SUBTOTAL(109,September[Uge 1])","v":{"v":0,"d":"0.0"}},{"$f":"SUBTOTAL(109,September[Overtid])","v":{"v":0,"d":"0.0"}},{"$f":"SUBTOTAL(109,September[Uge 2])","v":{"v":0,"d":"0.0"}},{"$f":"SUBTOTAL(109,September[[Overtid ]])","v":{"v":0,"d":"0.0"}},{"$f":"SUBTOTAL(109,September[Uge 3])","v":{"v":0,"d":"0.0"}},{"$f":"SUBTOTAL(109,September[[Overtid  ]])","v":{"v":0,"d":"0.0"}},{"$f":"SUBTOTAL(109,September[Uge 4])","v":{"v":0,"d":"0.0"}},{"$f":"SUBTOTAL(109,September[[Overtid   ]])","v":{"v":0,"d":"0.0"}},{"$f":"SUBTOTAL(109,September[Uge 5])","v":{"v":0,"d":"0.0"}},{"$f":"SUBTOTAL(109,September[[Overtid    ]])","v":{"v":0,"d":"0.0"}}]
["Det samlede antal normale arbejdstimer for september i celle F99 og det samlede antal overtidstimer for september i celle I99 beregnes automatisk.",{"$nulls":3},{"$f":"TEXT(DATEVALUE(September[[#Headers],[September]]&\" \"&YEAR(TODAY())),\"mmm.\")&\" samlet: Normal arbejdstid\"","v":"sep. samlet: Normal arbejdstid"},{"$f":"SUM(September[Uge 1],September[Uge 2],September[Uge 3],September[Uge 4],September[Uge 5])","v":{"v":0,"d":"0.0"}},{"$f":"TEXT(DATEVALUE(September[[#Headers],[September]]&\" \"&YEAR(TODAY())),\"mmm.\")&\" samlet: Overtid\"","v":"sep. samlet: Overtid"},null,{"$f":"SUM(September[Overtid],September[[Overtid ]],September[[Overtid  ]],September[[Overtid   ]],September[[Overtid    ]])","v":{"v":0,"d":"0.0"}}]
["Overskriften for fjerde kvartal, oktober, november, december, er i celle E100. ",{"$nulls":3},"Oktober, november, december      medarbejdertimeseddel: Dagligt, ugentligt, månedligt, årligt"]
["Angiv normale arbejdstimer og overtidstimer for oktober i tabellen, der begynder i celle E101. Den næste vejledning er i celle A110.",{"$nulls":3},"Oktober","Uge 1","Overtid","Uge 2","Overtid ","Uge 3","Overtid  ","Uge 4","Overtid   ","Uge 5","Overtid    "]
[{"$nulls":4},"Mandag"]
[{"$nulls":4},"Tirsdag"]
[{"$nulls":4},"Onsdag"]
[{"$nulls":4},"torsdag"]
[{"$nulls":4},"Fredag"]
[{"$nulls":4},"Lørdag"]
[{"$nulls":4},"Søndag"]
[{"$nulls":4},"Samlet antal ugentlige timer",{"$f":"SUBTOTAL(109,Oktober[Uge 1])","v":{"v":0,"d":"0.0"}},{"$f":"SUBTOTAL(109,Oktober[Overtid])","v":{"v":0,"d":"0.0"}},{"$f":"SUBTOTAL(109,Oktober[Uge 2])","v":{"v":0,"d":"0.0"}},{"$f":"SUBTOTAL(109,Oktober[[Overtid ]])","v":{"v":0,"d":"0.0"}},{"$f":"SUBTOTAL(109,Oktober[Uge 3])","v":{"v":0,"d":"0.0"}},{"$f":"SUBTOTAL(109,Oktober[[Overtid  ]])","v":{"v":0,"d":"0.0"}},{"$f":"SUBTOTAL(109,Oktober[Uge 4])","v":{"v":0,"d":"0.0"}},{"$f":"SUBTOTAL(109,Oktober[[Overtid   ]])","v":{"v":0,"d":"0.0"}},{"$f":"SUBTOTAL(109,Oktober[Uge 5])","v":{"v":0,"d":"0.0"}},{"$f":"SUBTOTAL(109,Oktober[[Overtid    ]])","v":{"v":0,"d":"0.0"}}]
["Det samlede antal normale arbejdstimer for oktober i celle F110 og det samlede antal overtidstimer for oktober i celle I110 beregnes automatisk. Den næste vejledning er i celle A112.",{"$nulls":3},{"$f":"TEXT(DATEVALUE(Oktober[[#Headers],[Oktober]]&\" \"&YEAR(TODAY())),\"mmm.\")&\" samlet: Normal arbejdstid\"","v":"okt. samlet: Normal arbejdstid"},{"$f":"SUM(Oktober[Uge 1],Oktober[Uge 2],Oktober[Uge 3],Oktober[Uge 4],Oktober[Uge 5])","v":{"v":0,"d":"0.0"}},{"$f":"TEXT(DATEVALUE(Oktober[[#Headers],[Oktober]]&\" \"&YEAR(TODAY())),\"mmm.\")&\" samlet: Overtid\"","v":"okt. samlet: Overtid"},null,{"$f":"SUM(Oktober[Overtid],Oktober[[Overtid ]],Oktober[[Overtid  ]],Oktober[[Overtid   ]],Oktober[[Overtid    ]])","v":{"v":0,"d":"0.0"}}]
[]
["Angiv normale arbejdstimer og overtidstimer for november i tabellen, der begynder i celle E112. Den næste vejledning er i celle A121.",{"$nulls":3},"November","Uge 1","Overtid","Uge 2","Overtid ","Uge 3","Overtid  ","Uge 4","Overtid    ","Uge 5","Overtid     "]
[{"$nulls":4},"Mandag"]
[{"$nulls":4},"Tirsdag"]
[{"$nulls":4},"Onsdag"]
[{"$nulls":4},"torsdag"]
[{"$nulls":4},"Fredag"]
[{"$nulls":4},"Lørdag"]
[{"$nulls":4},"Søndag"]
[{"$nulls":4},"Samlet antal ugentlige timer",{"$f":"SUBTOTAL(109,November[Uge 1])","v":{"v":0,"d":"0.0"}},{"$f":"SUBTOTAL(109,November[Overtid])","v":{"v":0,"d":"0.0"}},{"$f":"SUBTOTAL(109,November[Uge 2])","v":{"v":0,"d":"0.0"}},{"$f":"SUBTOTAL(109,November[[Overtid ]])","v":{"v":0,"d":"0.0"}},{"$f":"SUBTOTAL(109,November[Uge 3])","v":{"v":0,"d":"0.0"}},{"$f":"SUBTOTAL(109,November[[Overtid  ]])","v":{"v":0,"d":"0.0"}},{"$f":"SUBTOTAL(109,November[Uge 4])","v":{"v":0,"d":"0.0"}},{"$f":"SUBTOTAL(109,November[[Overtid    ]])","v":{"v":0,"d":"0.0"}},{"$f":"SUBTOTAL(109,November[Uge 5])","v":{"v":0,"d":"0.0"}},{"$f":"SUBTOTAL(109,November[[Overtid     ]])","v":{"v":0,"d":"0.0"}}]
["Det samlede antal normale arbejdstimer for november i celle F121 og det samlede antal overtidstimer for november i celle I121 beregnes automatisk. Den næste vejledning er i celle A123.",{"$nulls":3},{"$f":"TEXT(DATEVALUE(November[[#Headers],[November]]&\" \"&YEAR(TODAY())),\"mmm.\")&\" samlet: Normal arbejdstid\"","v":"nov. samlet: Normal arbejdstid"},{"$f":"SUM(November[Uge 1],November[Uge 2],November[Uge 3],November[Uge 4],November[Uge 5])","v":{"v":0,"d":"0.0"}},{"$f":"TEXT(DATEVALUE(November[[#Headers],[November]]&\" \"&YEAR(TODAY())),\"mmm.\")&\" samlet: Overtid\"","v":"nov. samlet: Overtid"},null,{"$f":"SUM(November[Overtid],November[[Overtid ]],November[[Overtid  ]],November[[Overtid    ]],November[[Overtid     ]])","v":{"v":0,"d":"0.0"}}]
[]
["Angiv normale arbejdstimer og overtidstimer for december i tabellen, der begynder i celle E123. Den næste vejledning er i celle A132.",{"$nulls":3},"December","Uge 1","Overtid","Uge 2","Overtid ","Uge 3","Overtid  ","Uge 4","Overtid   ","Uge 5","Overtid    "]
[{"$nulls":4},"Mandag"]
[{"$nulls":4},"Tirsdag"]
[{"$nulls":4},"Onsdag"]
[{"$nulls":4},"torsdag"]
[{"$nulls":4},"Fredag"]
[{"$nulls":4},"Lørdag"]
[{"$nulls":4},"Søndag"]
[{"$nulls":4},"Samlet antal ugentlige timer",{"$f":"SUBTOTAL(109,December[Uge 1])","v":{"v":0,"d":"0.0"}},{"$f":"SUBTOTAL(109,December[Overtid])","v":{"v":0,"d":"0.0"}},{"$f":"SUBTOTAL(109,December[Uge 2])","v":{"v":0,"d":"0.0"}},{"$f":"SUBTOTAL(109,December[[Overtid ]])","v":{"v":0,"d":"0.0"}},{"$f":"SUBTOTAL(109,December[Uge 3])","v":{"v":0,"d":"0.0"}},{"$f":"SUBTOTAL(109,December[[Overtid  ]])","v":{"v":0,"d":"0.0"}},{"$f":"SUBTOTAL(109,December[Uge 4])","v":{"v":0,"d":"0.0"}},{"$f":"SUBTOTAL(109,December[[Overtid   ]])","v":{"v":0,"d":"0.0"}},{"$f":"SUBTOTAL(109,December[Uge 5])","v":{"v":0,"d":"0.0"}},{"$f":"SUBTOTAL(109,December[[Overtid    ]])","v":{"v":0,"d":"0.0"}}]
["Det samlede antal normale arbejdstimer for december i celle F132 og det samlede antal overtidstimer for december i celle I132 beregnes automatisk.",{"$nulls":3},{"$f":"TEXT(DATEVALUE(December[[#Headers],[December]]&\" \"&YEAR(TODAY())),\"mmm.\")&\" samlet: Normal arbejdstid\"","v":"dec. samlet: Normal arbejdstid"},{"$f":"SUM(December[Uge 1],December[Uge 2],December[Uge 3],December[Uge 4],December[Uge 5])","v":{"v":0,"d":"0.0"}},{"$f":"TEXT(DATEVALUE(December[[#Headers],[December]]&\" \"&YEAR(TODAY())),\"mmm.\")&\" samlet: Overtid\"","v":"dec. samlet: Overtid"},null,{"$f":"SUM(G124:G130,I124:I130,K124:K130,M124:M130,O124:O130)","v":{"v":0,"d":"0.0"}}]